lending/lending_fUSD_20250808
["ID","MTS","AMOUNT","RATE_DAILY","PERIOD"]
[378015454,1754669440073,-400.0,0.00018396,2]
[378015455,1754669440082,-400.0,0.00018396,2]
[378015456,1754669440091,-579.16,0.00018396,2]
[378015457,1754669440100,-457.06,0.00018396,2]
[378015458,1754669440109,-400.0,0.00018396,2]
[378015459,1754669440118,-400.0,0.00018396,2]
[378015460,1754669440128,-400.0,0.00018396,2]
[378015461,1754669440137,-400.0,0.00018396,2]
[378015462,1754669440146,-400.0,0.00018396,2]
[378015463,1754669440156,-426.5,0.00018396,2]
[378015464,1754669440166,-400.0,0.00018396,2]
[378015465,1754669440176,-400.0,0.00018396,2]
[378015466,1754669440186,-400.0,0.00018396,2]
[378015467,1754669440196,-2865.41,0.00018396,2]
[378015468,1754669440205,-400.0,0.00018396,2]
[378015469,1754669440214,-400.0,0.00018396,2]
[378015470,1754669440224,-400.0,0.00018396,2]
[378015471,1754669440233,-400.0,0.00018396,2]
[378015472,1754669440242,-400.0,0.00018396,2]
[378015473,1754669440251,-479.34,0.00018396,2]
[378015474,1754669440260,-433.99,0.00018396,2]
[378015475,1754669440269,-400.0,0.00018396,2]
[378015476,1754669440279,-1025.98,0.00018396,2]
[378015477,1754669440288,-400.0,0.00018396,2]
[378015478,1754669440297,-400.0,0.00018396,2]
[378015479,1754669440307,-400.0,0.00018396,2]
[378015480,1754669440316,-578.59,0.00018396,2]
[378015481,1754669440325,-400.0,0.00018396,2]
[378015482,1754669440334,-568.96,0.00018396,2]
[378015483,1754669440343,-400.0,0.00018396,2]
[378015484,1754669440353,-400.0,0.00018396,2]
[378015485,1754669440363,-400.0,0.00018396,2]
[378015486,1754669440374,-1746.19,0.00018396,2]
[378015487,1754669440384,-400.0,0.00018396,2]
[378015488,1754669440393,-400.0,0.00018396,2]
[378015489,1754669440403,-400.0,0.00018396,2]
[378015490,1754669440413,-868.12,0.00018396,2]
[378015491,1754669440423,-400.0,0.00018396,2]
[378015492,1754669440432,-583.5,0.00018396,2]
[378015493,1754669440441,-400.0,0.00018396,2]
[378015494,1754669440450,-511.52,0.00018396,2]
[378015495,1754669440460,-400.0,0.00018396,2]
[378015496,1754669440469,-976.11,0.00018396,2]
[378015497,1754669440478,-156.42687974,0.00018396,2]
[378015498,1754669440487,-400.0,0.00018396,2]
[378015499,1754669440497,-782.74,0.00018396,2]
[378015500,1754669440506,-400.0,0.00018396,2]
[378015501,1754669440515,-528.81,0.00018396,2]
[378015502,1754669440524,-400.0,0.00018396,2]
[378015503,1754669440534,-400.0,0.00018396,2]
[378015504,1754669440543,-400.0,0.00018396,2]
[378015505,1754669440552,-400.0,0.00018396,2]
[378015506,1754669440561,-400.0,0.00018396,2]
[378015507,1754669440571,-971.0,0.00018396,2]
[378015508,1754669440580,-497.24,0.00018396,2]
[378015509,1754669440589,-400.0,0.00018396,2]
[378015510,1754669440599,-400.0,0.00018396,2]
[378015511,1754669440609,-1328.31,0.00018396,2]
[378015512,1754669440619,-400.0,0.00018396,2]
[378015513,1754669440628,-400.0,0.00018396,2]
[378015514,1754669440637,-400.0,0.00018396,2]
[378015515,1754669440646,-400.0,0.00018396,2]
[378015516,1754669440655,-492.66,0.00018396,2]
[378015517,1754669440666,-400.0,0.00018396,2]
[378015518,1754669440676,-400.0,0.00018396,2]
[378015519,1754669440685,-400.0,0.00018396,2]
[378015520,1754669440702,-400.0,0.00018396,2]
[378015521,1754669440711,-400.0,0.00018396,2]
[378015522,1754669440721,-400.0,0.00018396,2]
[378015523,1754669440730,-536.48,0.00018396,2]
[378015524,1754669440739,-400.0,0.00018396,2]
[378015525,1754669440750,-493.84623676,0.00018396,2]
[378015526,1754669440759,-400.0,0.00018396,2]
[378015527,1754669440769,-400.0,0.00018396,2]
[378015528,1754669440778,-400.0,0.00018396,2]
[378015529,1754669440787,-400.0,0.00018396,2]
[378015530,1754669440796,-1060.74,0.00018396,2]
[378015531,1754669440805,-400.0,0.00018396,2]
[378015532,1754669440814,-400.0,0.00018396,2]
[378015533,1754669440823,-400.0,0.00018396,2]
[378015534,1754669440832,-857.42,0.00018396,2]
[378015535,1754669440841,-400.0,0.00018396,2]
[378015536,1754669440850,-400.0,0.00018396,2]
[378015537,1754669440859,-1331.55,0.00018396,2]
[378015538,1754669440868,-625.23,0.00018396,2]
[378015539,1754669440878,-400.0,0.00018396,2]
[378015540,1754669440887,-400.0,0.00018396,2]
[378015541,1754669440897,-400.0,0.00018396,2]
[378015542,1754669440907,-400.0,0.00018396,2]
[378015543,1754669440917,-400.0,0.00018396,2]
[378015544,1754669440926,-425.8,0.00018396,2]
[378015545,1754669440936,-453.72,0.00018396,2]
[378015546,1754669440945,-400.0,0.00018396,2]
[378015547,1754669440955,-400.0,0.00018396,2]
[378015548,1754669440976,-400.0,0.00018396,2]
[378015549,1754669440996,-400.0,0.00018396,2]
[378015550,1754669441018,-596.31,0.00018396,2]
[378015551,1754669441039,-400.0,0.00018396,2]
[378015552,1754669441056,-400.0,0.00018396,2]
[378015553,1754669441067,-538.89,0.00018396,2]
[378015554,1754669441077,-400.0,0.00018396,2]
[378015555,1754669441088,-402.64,0.00018396,2]
[378015556,1754669441097,-400.0,0.00018396,2]
[378015557,1754669441107,-400.0,0.00018396,2]
[378015558,1754669441116,-400.0,0.00018396,2]
[378015559,1754669441125,-1320.59,0.00018396,2]
[378015560,1754669441135,-400.0,0.00018396,2]
[378015561,1754669441144,-400.0,0.00018396,2]
[378015562,1754669441154,-400.0,0.00018396,2]
[378015563,1754669441165,-400.0,0.00018396,2]
[378015564,1754669441174,-400.0,0.00018396,2]
[378015565,1754669441184,-448.45,0.00018396,2]
[378015566,1754669441193,-400.0,0.00018396,2]
[378015567,1754669441203,-400.0,0.00018396,2]
[378015568,1754669441212,-908.21,0.00018396,2]
[378015569,1754669441222,-400.0,0.00018396,2]
[378015570,1754669441232,-500.0,0.00018396,2]
[378015571,1754669441242,-400.0,0.00018396,2]
[378015572,1754669441252,-896.71,0.00018396,2]
[378015573,1754669441262,-400.0,0.00018396,2]
[378015574,1754669441272,-400.0,0.00018396,2]
[378015575,1754669441282,-400.0,0.00018396,2]
[378015576,1754669441292,-400.0,0.00018396,2]
[378015577,1754669441302,-400.0,0.00018396,2]
[378015578,1754669441312,-400.0,0.00018396,2]
[378015579,1754669441321,-400.0,0.00018396,2]
[378015580,1754669441331,-400.0,0.00018396,2]
[378015581,1754669441341,-400.0,0.00018396,2]
[378015582,1754669441350,-400.0,0.00018396,2]
[378015583,1754669441360,-420.23,0.00018396,2]
[378015584,1754669441369,-400.0,0.00018396,2]
[378015585,1754669441379,-400.0,0.00018396,2]
[378015586,1754669441388,-400.0,0.00018396,2]
[378015587,1754669441398,-3958.88,0.00018396,2]
[378015588,1754669441408,-868.76,0.00018396,2]
[378015589,1754669441418,-403.18857261,0.00018396,2]
[378015590,1754669441428,-400.0,0.00018396,2]
[378015591,1754669441439,-400.0,0.00018396,2]
[378015592,1754669441459,-400.0,0.00018396,2]
[378015593,1754669441470,-486.29,0.00018396,2]
[378015594,1754669441481,-400.0,0.00018396,2]
[378015595,1754669441491,-400.0,0.00018396,2]
[378015596,1754669441502,-400.0,0.00018396,2]
[378015597,1754669441513,-400.0,0.00018396,2]
[378015598,1754669441524,-400.0,0.00018396,2]
[378015599,1754669441535,-496.3,0.00018396,2]
[378015600,1754669441546,-544.9,0.00018396,2]
[378015601,1754669441557,-400.0,0.00018396,2]
[378015602,1754669441569,-525.45,0.00018396,2]
[378015603,1754669441580,-400.0,0.00018396,2]
[378015604,1754669441594,-788.21,0.00018396,2]
[378015605,1754669441604,-400.0,0.00018396,2]
[378015606,1754669441615,-1540.06,0.00018396,2]
[378015607,1754669441625,-491.6,0.00018396,2]
[378015608,1754669441635,-400.0,0.00018396,2]
[378015609,1754669441645,-400.0,0.00018396,2]
[378015610,1754669441656,-404.23661912,0.00018396,2]
[378015611,1754669441668,-400.0,0.00018396,2]
[378015612,1754669441679,-400.0,0.00018396,2]
[378015613,1754669441693,-1676.13,0.00018396,2]
[378015614,1754669441705,-400.0,0.00018396,2]
[378015615,1754669441716,-406.38,0.00018396,2]
[378015616,1754669441726,-400.0,0.00018396,2]
[378015617,1754669441736,-1000.0,0.00018396,2]
[378015618,1754669441747,-400.0,0.00018396,2]
[378015619,1754669441757,-400.0,0.00018396,2]
[378015620,1754669441766,-1543.92,0.00018396,2]
[378015621,1754669441778,-1771.46,0.00018396,2]
[378015622,1754669441789,-1276.24,0.00018396,2]
[378015623,1754669441799,-1834.76,0.00018396,2]
[378015624,1754669441809,-526.59,0.00018396,2]
[378015625,1754669441820,-910.98,0.00018396,2]
[378015626,1754669441830,-400.0,0.00018396,2]
[378015627,1754669441840,-400.0,0.00018396,2]
[378015628,1754669441849,-400.0,0.00018396,2]
[378015629,1754669441860,-404.83,0.00018396,2]
[378015630,1754669441869,-400.0,0.00018396,2]
[378015631,1754669441880,-1444.29,0.00018396,2]
[378015632,1754669441889,-400.0,0.00018396,2]
[378015633,1754669441899,-615.62,0.00018396,2]
[378015634,1754669441909,-400.0,0.00018396,2]
[378015635,1754669441920,-400.0,0.00018396,2]
[378015636,1754669441930,-1013.06,0.00018396,2]
[378015637,1754669441940,-400.0,0.00018396,2]
[378015638,1754669441949,-1214.78,0.00018396,2]
[378015639,1754669441961,-497.84,0.00018396,2]
[378015640,1754669441971,-410.74,0.00018396,2]
[378015641,1754669441980,-400.0,0.00018396,2]
[378015642,1754669441990,-400.0,0.00018396,2]
[378015643,1754669442000,-400.0,0.00018396,2]
[378015644,1754669442009,-400.0,0.00018396,2]
[378015645,1754669442019,-671.65,0.00018396,2]
[378015646,1754669442029,-216.3,0.00018396,2]
[378015647,1754669442039,-455.97,0.00018396,2]
[378015648,1754669442049,-400.0,0.00018396,2]
[378015649,1754669442058,-400.0,0.00018396,2]
[378015650,1754669442068,-3405.28,0.00018396,2]
[378015651,1754669442077,-460.1,0.00018396,2]
[378015652,1754669442087,-420.14,0.00018396,2]
[378015653,1754669442097,-833.41,0.00018396,2]
[378015654,1754669442107,-400.0,0.00018396,2]
[378015655,1754669442116,-400.0,0.00018396,2]
[378015656,1754669442126,-1142.08,0.00018396,2]
[378015657,1754669442136,-400.0,0.00018396,2]
[378015658,1754669442147,-500.0,0.00018396,2]
[378015659,1754669442156,-777.18,0.00018396,2]
[378015660,1754669442167,-400.0,0.00018396,2]
[378015661,1754669442176,-1516.44,0.00018396,2]
[378015662,1754669442186,-454.23,0.00018396,2]
[378015663,1754669442196,-1458.34,0.00018396,2]
[378015664,1754669442206,-400.0,0.00018396,2]
[378015665,1754669442216,-401.99241119,0.00018396,2]
[378015666,1754669442226,-400.0,0.00018396,2]
[378015667,1754669442236,-4624.2,0.00018396,2]
[378015668,1754669442245,-1407.46,0.00018396,2]
[378015669,1754669442255,-422.1,0.00018396,2]
[378015670,1754669442265,-400.0,0.00018396,2]
[378015671,1754669442274,-400.0,0.00018396,2]
[378015672,1754669442284,-400.0,0.00018396,2]
[378015673,1754669442293,-1220.89,0.00018396,2]
[378015674,1754669442303,-400.0,0.00018396,2]
[378015675,1754669442313,-500.0,0.00018396,2]
[378015676,1754669442323,-419.86697362,0.00018396,2]
[378015677,1754669442333,-400.0,0.00018396,2]
[378015678,1754669442343,-686.63,0.00018396,2]
[378015679,1754669442352,-400.0,0.00018396,2]
[378015680,1754669442362,-500.0,0.00018396,2]
[378015681,1754669442372,-1283.29,0.00018396,2]
[378015682,1754669442382,-1271.52,0.00018396,2]
[378015683,1754669442392,-400.0,0.00018396,2]
[378015684,1754669442402,-400.0,0.00018396,2]
[378015685,1754669442412,-400.0,0.00018396,2]
[378015686,1754669442423,-400.0,0.00018396,2]
[378015687,1754669442433,-1531.74,0.00018396,2]
[378015688,1754669442443,-400.0,0.00018396,2]
[378015689,1754669442453,-400.0,0.00018396,2]
[378015692,1754669442463,-400.0,0.00018396,2]
[378015694,1754669442472,-400.0,0.00018396,2]
[378015697,1754669442482,-466.82,0.00018396,2]
[378015700,1754669442492,-1320.06,0.00018396,2]
[378015702,1754669442503,-1421.75,0.00018396,2]
[378015704,1754669442513,-455.48,0.00018396,2]
[378015706,1754669442522,-400.0,0.00018396,2]
[378015708,1754669442532,-894.63,0.00018396,2]
[378015710,1754669442542,-400.0,0.00018396,2]
[378015712,1754669442552,-995.6,0.00018396,2]
[378015714,1754669442562,-400.0,0.00018396,2]
[378015716,1754669442572,-400.0,0.00018396,2]
[378015718,1754669442582,-675.46,0.00018396,2]
[378015720,1754669442592,-943.62,0.00018396,2]
[378015723,1754669442603,-3181.7,0.00018396,2]
[378015725,1754669442614,-400.0,0.00018396,2]
[378015727,1754669442625,-577.69,0.00018396,2]
[378015729,1754669442637,-400.0,0.00018396,2]
[378015731,1754669442647,-402.3312927,0.00018396,2]
[378015733,1754669442656,-400.0,0.00018396,2]
[378015735,1754669442667,-410.8383821,0.00018396,2]
[378015737,1754669442677,-418.24749965,0.00018396,2]
[378015739,1754669442688,-440.54,0.00018396,2]
[378015741,1754669442699,-400.0,0.00018396,2]
[378015743,1754669442709,-491.71,0.00018396,2]
[378015745,1754669442719,-400.0,0.00018396,2]
[378015747,1754669442730,-474.82,0.00018396,2]
[378015749,1754669442740,-400.0,0.00018396,2]
[378015751,1754669442750,-3907.01,0.00018396,2]
[378015753,1754669442761,-400.0,0.00018396,2]
[378015755,1754669442771,-400.0,0.00018396,2]
[378015757,1754669442781,-400.0,0.00018396,2]
[378015760,1754669442791,-400.0,0.00018396,2]
[378015762,1754669442801,-400.0,0.00018396,2]
[378015764,1754669442814,-400.0,0.00018396,2]
[378015766,1754669442825,-447.25,0.00018396,2]
[378015768,1754669442835,-4881.55,0.00018396,2]
[378015770,1754669442845,-435.16,0.00018396,2]
[378015772,1754669442856,-400.0,0.00018396,2]
[378015774,1754669442866,-405.30144908,0.00018396,2]
[378015776,1754669442876,-400.0,0.00018396,2]
[378015778,1754669442886,-3961.85,0.00018396,2]
[378015780,1754669442896,-400.0,0.00018396,2]
[378015782,1754669442906,-500.0,0.00018396,2]
[378015784,1754669442917,-607.19,0.00018396,2]
[378015787,1754669442927,-400.0,0.00018396,2]
[378015789,1754669442940,-400.0,0.00018396,2]
[378015791,1754669442950,-1995.27,0.00018396,2]
[378015793,1754669442960,-199.0031394,0.00018396,2]
[378015795,1754669442970,-400.0,0.00018396,2]
[378015797,1754669442980,-400.0,0.00018396,2]
[378015799,1754669442990,-2151.79,0.00018396,2]
[378015801,1754669443000,-1748.15,0.00018396,2]
[378015803,1754669443009,-435.98,0.00018396,2]
[378015805,1754669443020,-400.0,0.00018396,2]
[378015807,1754669443030,-400.0,0.00018396,2]
[378015809,1754669443040,-1071.34,0.00018396,2]
[378015812,1754669443050,-400.0,0.00018396,2]
[378015814,1754669443060,-5556.86,0.00018396,2]
[378015816,1754669443070,-400.0,0.00018396,2]
[378015818,1754669443080,-400.0,0.00018396,2]
[378015820,1754669443089,-400.0,0.00018396,2]
[378015822,1754669443099,-402.17931156,0.00018396,2]
[378015824,1754669443110,-776.47,0.00018396,2]
[378015826,1754669443119,-400.0,0.00018396,2]
[378015828,1754669443129,-4368.67,0.00018396,2]
[378015830,1754669443139,-400.0,0.00018396,2]
[378015832,1754669443150,-400.0,0.00018396,2]
[378015834,1754669443160,-405.1667586,0.00018396,2]
[378015836,1754669443171,-500.0,0.00018396,2]
[378015838,1754669443180,-400.0,0.00018396,2]
[378015840,1754669443192,-454.28,0.00018396,2]
[378015842,1754669443202,-455.24,0.00018396,2]
[378015844,1754669443214,-400.0,0.00018396,2]
[378015846,1754669443227,-405.33728541,0.00018396,2]
[378015848,1754669443238,-400.0,0.00018396,2]
[378015850,1754669443248,-572.22,0.00018396,2]
[378015852,1754669443258,-552.11,0.00018396,2]
[378015854,1754669443267,-5326.54,0.00018396,2]
[378015857,1754669443277,-1655.65,0.00018396,2]
[378015859,1754669443287,-400.0,0.00018396,2]
[378015861,1754669443296,-1353.03,0.00018396,2]
[378015863,1754669443306,-400.0,0.00018396,2]
[378015865,1754669443316,-400.0,0.00018396,2]
[378015867,1754669443326,-407.52111475,0.00018396,2]
[378015869,1754669443336,-500.0,0.00018396,2]
[378015871,1754669443346,-1787.09,0.00018396,2]
[378015873,1754669443356,-437.4,0.00018396,2]
[378015875,1754669443366,-400.0,0.00018396,2]
[378015877,1754669443376,-1818.29,0.00018396,2]
[378015879,1754669443386,-448.37,0.00018396,2]
[378015882,1754669443396,-400.0,0.00018396,2]
[378015884,1754669443406,-400.0,0.00018396,2]
[378015885,1754669443416,-400.0,0.00018396,2]
[378015886,1754669443426,-473.68,0.00018396,2]
[378015887,1754669443435,-400.0,0.00018396,2]
[378015888,1754669443445,-1169.93,0.00018396,2]
[378015889,1754669443454,-3083.31,0.00018396,2]
[378015890,1754669443464,-400.0,0.00018396,2]
[378015891,1754669443474,-2127.79,0.00018396,2]
[378015892,1754669443484,-400.0,0.00018396,2]
[378015893,1754669443494,-400.0,0.00018396,2]
[378015894,1754669443503,-509.83,0.00018396,2]
[378015895,1754669443513,-400.0,0.00018396,2]
[378015896,1754669443523,-400.0,0.00018396,2]
[378015897,1754669443533,-400.0,0.00018396,2]
[378015898,1754669443543,-400.0,0.00018396,2]
[378015899,1754669443552,-400.0,0.00018396,2]
[378015900,1754669443562,-836.42,0.00018396,2]
[378015901,1754669443572,-445.23,0.00018396,2]
[378015902,1754669443581,-740.05,0.00018396,2]
[378015903,1754669443591,-400.0,0.00018396,2]
[378015904,1754669443601,-400.0,0.00018396,2]
[378015905,1754669443611,-1017.06,0.00018396,2]
[378015906,1754669443621,-400.0,0.00018396,2]
[378015907,1754669443631,-3318.81,0.00018396,2]
[378015908,1754669443641,-400.0,0.00018396,2]
[378015909,1754669443651,-400.0,0.00018396,2]
[378015910,1754669443661,-462.09356575,0.00018396,2]
[378015911,1754669443671,-1132.27,0.00018396,2]
[378015912,1754669443682,-1001.22,0.00018396,2]
[378015913,1754669443694,-405.29748039,0.00018396,2]
[378015914,1754669443704,-401.60602204,0.00018396,2]
[378015915,1754669443714,-501.43,0.00018396,2]
[378015916,1754669443724,-403.64729183,0.00018396,2]
[378015917,1754669443735,-633.86,0.00018396,2]
[378015918,1754669443745,-404.39182966,0.00018396,2]
[378015919,1754669443755,-400.0,0.00018396,2]
[378015920,1754669443765,-400.0,0.00018396,2]
[378015921,1754669443777,-400.0,0.00018396,2]
[378015922,1754669443786,-400.0,0.00018396,2]
[378015923,1754669443796,-471.36,0.00018396,2]
[378015924,1754669443807,-1748.49,0.00018396,2]
[378015925,1754669443816,-862.04,0.00018396,2]
[378015926,1754669443826,-423.40524596,0.00018396,2]
[378015927,1754669443837,-400.0,0.00018396,2]
[378015928,1754669443847,-400.0,0.00018396,2]
[378015929,1754669443857,-2373.25,0.00018396,2]
[378015930,1754669443867,-1280.13,0.00018396,2]
[378015931,1754669443877,-400.0,0.00018396,2]
[378015932,1754669443887,-1010.24,0.00018396,2]
[378015933,1754669443897,-400.0,0.00018396,2]
[378015934,1754669443906,-1499.55,0.00018396,2]
[378015935,1754669443917,-400.0,0.00018396,2]
[378015936,1754669443927,-400.0,0.00018396,2]
[378015937,1754669443937,-400.0,0.00018396,2]
[378015938,1754669443948,-1166.4,0.00018396,2]
[378015939,1754669443957,-660.66,0.00018396,2]
[378015940,1754669443968,-400.0,0.00018396,2]
[378015941,1754669443977,-7523.23,0.00018396,2]
[378015942,1754669443987,-424.227993,0.00018396,2]
[378015943,1754669443998,-1342.86,0.00018396,2]
[378015944,1754669444008,-1524.08,0.00018396,2]
[378015945,1754669444018,-591.38,0.00018396,2]
[378015946,1754669444027,-400.0,0.00018396,2]
[378015947,1754669444036,-400.0,0.00018396,2]
[378015948,1754669444046,-439.65,0.00018396,2]
[378015949,1754669444057,-400.0,0.00018396,2]
[378015950,1754669444067,-809.05,0.00018396,2]
[378015951,1754669444076,-400.0,0.00018396,2]
[378015952,1754669444086,-5829.92,0.00018396,2]
[378015953,1754669444097,-1761.37,0.00018396,2]
[378015954,1754669444107,-400.0,0.00018396,2]
[378015955,1754669444117,-400.0,0.00018396,2]
[378015956,1754669444127,-400.0,0.00018396,2]
[378015957,1754669444137,-400.0,0.00018396,2]
[378015958,1754669444147,-1610.05,0.00018396,2]
[378015959,1754669444157,-400.0,0.00018396,2]
[378015960,1754669444167,-400.0,0.00018396,2]
[378015961,1754669444177,-400.0,0.00018396,2]
[378015977,1754669444479,-400.0,0.00018396,2]
[378015978,1754669444502,-755.11,0.00018396,2]
[378015979,1754669444512,-643.37,0.00018396,2]
[378015980,1754669444521,-764.46,0.00018396,2]
[378015981,1754669444531,-985.59,0.00018396,2]
[378015982,1754669444541,-257.9122438,0.00018396,2]
[378015983,1754669444549,-4533.75,0.00018396,2]
[378015984,1754669444559,-404.46878834,0.00018396,2]
[378015985,1754669444569,-543.79,0.00018396,2]
[378015986,1754669444579,-500.0,0.00018396,2]
[378015987,1754669444589,-400.0,0.00018396,2]
[378015988,1754669444598,-1461.07,0.00018396,2]
[378015989,1754669444608,-403.99898445,0.00018396,2]
[378015990,1754669444617,-400.0,0.00018396,2]
[378015991,1754669444627,-400.0,0.00018396,2]
[378015992,1754669444637,-400.0,0.00018396,2]
[378015993,1754669444646,-577.86,0.00018396,2]
[378015994,1754669444656,-1394.99,0.00018396,2]
[378015995,1754669444665,-400.0,0.00018396,2]
[378015996,1754669444676,-400.0,0.00018396,2]
[378015997,1754669444686,-3292.99,0.00018396,2]
[378015998,1754669444699,-745.45,0.00018396,2]
[378015999,1754669444709,-400.0,0.00018396,2]
[378016000,1754669444719,-630.01,0.00018396,2]
[378016001,1754669444730,-591.75,0.00018396,2]
[378016002,1754669444740,-400.0,0.00018396,2]
[378016003,1754669444750,-400.0,0.00018396,2]
[378016004,1754669444759,-400.0,0.00018396,2]
[378016005,1754669444769,-571.59,0.00018396,2]
[378016006,1754669444780,-400.0,0.00018396,2]
[378016007,1754669444790,-1458.03,0.00018396,2]
[378016008,1754669444800,-400.0,0.00018396,2]
[378016009,1754669444810,-1230.51,0.00018396,2]
[378016010,1754669444819,-922.39,0.00018396,2]
[378016011,1754669444829,-400.0,0.00018396,2]
[378016012,1754669444838,-400.0,0.00018396,2]
[378016013,1754669444848,-500.0,0.00018396,2]
[378016014,1754669444857,-5116.24,0.00018396,2]
[378016015,1754669444867,-400.0,0.00018396,2]
[378016016,1754669444877,-400.0,0.00018396,2]
[378016017,1754669444886,-252.09024004,0.00018396,2]
[378016018,1754669444896,-1077.25,0.00018396,2]
[378016019,1754669444906,-308.39086832,0.00018396,2]
[378016020,1754669444916,-1973.55,0.00018396,2]
[378016021,1754669444926,-888.02,0.00018396,2]
[378016022,1754669444935,-572.6,0.00018396,2]
[378016023,1754669444945,-510.38,0.00018396,2]
[378016024,1754669444955,-400.0,0.00018396,2]
[378016025,1754669444964,-1296.8,0.00018396,2]
[378016026,1754669444974,-1075.57,0.00018396,2]
[378016027,1754669444983,-400.0,0.00018396,2]
[378016028,1754669444993,-546.84596386,0.00018396,2]
[378016029,1754669445003,-400.0,0.00018396,2]
[378016030,1754669445013,-5597.06,0.00018396,2]
[378016031,1754669445022,-400.0,0.00018396,2]
[378016032,1754669445032,-638.9,0.00018396,2]
[378016033,1754669445041,-400.0,0.00018396,2]
[378016034,1754669445051,-400.0,0.00018396,2]
[378016035,1754669445059,-400.0,0.00018396,2]
[378016036,1754669445069,-450.68,0.00018396,2]
[378016037,1754669445079,-533.21,0.00018396,2]
[378016038,1754669445088,-3790.94,0.00018396,2]
[378016039,1754669445097,-663.4,0.00018396,2]
[378016040,1754669445106,-3288.41,0.00018396,2]
[378016041,1754669445115,-400.0,0.00018396,2]
[378016042,1754669445124,-3195.32,0.00018396,2]
[378016043,1754669445134,-400.0,0.00018396,2]
[378016044,1754669445143,-410.16,0.00018396,2]
[378016045,1754669445152,-526.43,0.00018396,2]
[378016046,1754669445161,-400.0,0.00018396,2]
[378016047,1754669445171,-400.0,0.00018396,2]
[378016048,1754669445180,-238.93490732,0.00018397,2]
[378016049,1754669445189,-401.78947097,0.00018397,2]
[378016050,1754669445199,-400.0,0.00018397,2]
[378016051,1754669445208,-403.21746327,0.00018397,2]
[378016052,1754669445217,-402.00046094,0.00018397,2]
[378016053,1754669445226,-401.831777,0.00018397,2]
[378016054,1754669445236,-401.59015965,0.00018397,2]
[378016055,1754669445245,-400.0,0.00018397,2]
[378016056,1754669445254,-400.0,0.00018397,2]
[378016057,1754669445263,-400.0,0.00018397,2]
[378016058,1754669445272,-408.84,0.00018397,2]
[378016059,1754669445282,-400.0,0.00018397,2]
[378016061,1754669445291,-500.0,0.00018397,2]
[378016062,1754669445300,-400.0,0.00018397,2]
[378016063,1754669445309,-400.0,0.00018397,2]
[378016064,1754669445319,-487.43,0.00018397,2]
[378016065,1754669445328,-390.26412428,0.00018397,2]
[378016066,1754669445337,-400.0,0.00018397,2]
[378016067,1754669445346,-400.0,0.00018397,2]
[378016068,1754669445355,-400.0,0.00018397,2]
[378016069,1754669445364,-400.0,0.00018397,2]
[378016070,1754669445374,-400.0,0.00018397,2]
[378016071,1754669445383,-400.0,0.00018397,2]